Workbook

Sheet List1
A3: Obec , IČ: Náklo, 00299251
A5: Rozpočtová změna č. 1 - březen 2021
A7: V souladu s ustanovením § 16 zákona č. 250/2000 Sb., o rozpočtových pravidlech územních rozpočtů dojde k rozpočtovému
A8: opatření v případě změn rozpočtových prostředků na závazných ukazatelích.
A10: Rozpočtová změna č. 1/2021 (předloženo Radě obce dne 29.03.2021) a doplněno při jednání Rady obce
A12: PŘÍJMY
A13: PAR | B13: POL | C13: UZ | D13: PARAGRAF | E13: POLOŽKA | F13: Schválený ROZP | G13: Upravený ROZP | H13: změna ROZP | I13: ROZP po ZMĚNĚ | J13: POZNÁMKA
A14: 0 | B14: 1211 | E14: Daň z přidané hodnoty Celkem | F14: 10000000 | G14: 10000000 | H14: -554393.31 | I14: =G14+H14 -> 9445606.69
A15: 0 | B15: 1334 | E15: Odvody za odnětí půdy ze zemědělského půdního fondu | F15: 400000 | G15: 400000 | H15: 61745.31 | I15: =H15+G15 -> 461745.31
A16: 0 | B16: 4116 | E16: Ostatní neinv. Přijaté transfery ze st. Rozpočtu | F16: 0 | G16: 0 | H16: 75000 | I16: =H16+G16 -> 75000 | J16: Navrátilová Dotace ÚP, 104 5 13013 - 61785,-, 104 1 13013 13215,-
A17: 0 | B17: 1122 | E17: Daň z příjmu právnických osob za obce | F17: 500000 | G17: 500000 | H17: 300000 | I17: =H17+F17 -> 800000 | J17: DPPO Obec
E18: 0 Bez ODPA Celkem | F18: 39449455 | G18: 39449455 | H18: =SUM(H14:H17) -> -117648 | I18: =G18+H18 -> 39331807
A19: 3113 | B19: 2229 | E19: Ostatní přijaté vratky transferů a podobné příjmy | F19: 0 | G19: 0 | H19: 77648 | I19: =H19+F19 -> 77648 | J19: vrácení dotace - šablony
A20: 3113 | D20: Základní školy | F20: 55000 | G20: =F20 -> 55000 | H20: =H19 -> 77648 | I20: =H20+F20 -> 132648
A21: 3639 | B21: 3111 | E21: Příjmy z prodeje pozemků | F21: 0 | G21: 0 | H21: 40000 | I21: =H21+F21 -> 40000 | J21: prodej pozemku
A22: 3639 | D22: Komunální služby a územní rozvoj j.n. | F22: 139000 | G22: =F22 -> 139000 | H22: =H21 -> 40000 | I22: =H22+F22 -> 179000 | K22: =+H21+H19+H17+H16+H15 -> 554393.31
D24: Celkem ZMĚNY v PŘÍJMECH | F24: 41986755 | G24: =F24 -> 41986755 | H24: =+H22+H20+H18 -> 0 | I24: =F24+H24 -> 41986755
D26: Celkem PŘÍJMY | G26: =F24 -> 41986755 | H26: =H24 -> 0 | I26: =F24 -> 41986755
A28: VÝDAJE:
A29: PAR | B29: POL | C29: UZ | D29: PARAGRAF | E29: POLOŽKA | G29: ROZPOČTOVÁNO | H29: změna ROZP | I29: ROZP po ZMĚNĚ | J29: POZNÁMKA
A30: 2212 | B30: 5137 | E30: Drobný dlouhodobý drobný majetek | F30: 0 | G30: 0 | H30: 15882 | I30: =H30+F30 -> 15882 | J30: zrdcadlo | K30: =+H30+H32+H35+H37+H39+H40+H42+H44+H46+H48+H50 -> 561226.4
A31: 2212 | B31: 5169 | E31: Nákup ostatních služeb | F31: 369000 | G31: 369000 | H31: -261226.4 | I31: =F31+H31 -> 107773.6
A32: 2212 | B32: 6121 | E32: Budovy, haly, stavby | F32: 0 | G32: 0 | H32: 10000 | I32: =H32+F32 -> 10000 | J32: most přes Cholinku
A33: 2212 | D33: Silnice | F33: 479000 | G33: 479000 | H33: =H32+H30+H31 -> -235344.4 | I33: 243655.6
A34: 2219 | B34: 5171 | E34: Opravy a udržování | F34: 13000000 | G34: 13000000 | H34: =-H33-H35-H38-H41-H45-H47-H49-H51-H42 -> -300000 | I34: 12700000
A35: 2219 | B35: 6121 | E35: Budovy, haly, stavby | F35: 0 | G35: 0 | H35: 15000 | I35: 15000 | J35: chodník Příkazy - Náklo
A36: 2219 | D36: Ostatní záležitosti pozemních komunikací | F36: =F34+F35 -> 13000000 | G36: 13000000 | H36: =H34+H35 -> -285000 | I36: 12715000
A37: 3113 | B37: 5904 | E37: Převody domněle neop.použ.dotací zpět poskyt | F37: 0 | G37: 0 | H37: 77648 | I37: 77648 | J37: vrácení dotace - šablony
A38: 3113 | D38: Základní školy | F38: 3349745.7 | G38: =F38 -> 3349745.7 | H38: =H37 -> 77648 | I38: 3427393.7
A39: 3429 | B39: 5169 | E39: nákupy ostatních služeb | F39: 0 | G39: 0 | H39: 24200 | I39: 24200 | J39: malování sál Mezice 53
A40: 3429 | B40: 6121 | E40: Budovy, haly, stavby | F40: 0 | G40: 0 | H40: 9680 | I40: =H40 -> 9680 | J40: Volnočasový areál
A41: 3429 | D41: Ostatní zájmová činnost a rekreace | F41: 525000 | G41: =F41+G40+G39 -> 525000 | H41: =+H40+H39 -> 33880 | I41: =H41+I40+I39 -> 67760
A42: 3613 | B42: 5154 | E42: elektrická energie | F42: 13000 | G42: 13000 | H42: 34000 | I42: =H42+G42 -> 47000 | J42: elektrická energie N107
A43: 3613 | D43: Nebytové hospodářství | F43: 51000 | G43: 51000 | H43: =H42 -> 34000 | I43: =H43+G43 -> 85000
A44: 3632 | B44: 5169 | E44: Nákup ostatních služeb | F44: 5000 | G44: 5000 | H44: =19300-G44 -> 14300 | I44: =H44+G44 -> 19300 | J44: hydrogeologický průzkum - hřbitov
A45: 3632 | D45: Pohřebnictví | F45: 157500 | G45: 157500 | H45: =H44 -> 14300 | I45: =H45+G45 -> 171800
A46: 3725 | B46: 5139 | E46: Nákup materiálu j.n. | F46: 75000 | G46: 75000 | H46: =128066.4-75000 -> 53066.4 | I46: =H46+F46 -> 128066.4 | J46: pytle na tříděný odpad
A47: 3725 | D47: Využívání a zenškodňování komun. Odpadu | F47: 423000 | G47: 423000 | H47: =H46 -> 53066.4 | I47: =H47+G47 -> 476066.4
A48: 6171 | B48: 5329 | E48: Ostatní neinv. Transfery veř. Rozp. Územní úrovně | F48: 45000 | G48: 45000 | H48: 7450 | I48: =H48+F48 -> 52450 | J48: členský příspěves DSO Region Moravská cesta
A49: 6171 | D49: Činnost státní správy | F49: 6610000 | G49: 6610000 | H49: =H48 -> 7450 | I49: =F49+H49 -> 6617450
A50: 6399 | B50: 5365 | E50: Platby daní a poplatků krajům, obcím a st. Fondům | F50: 500000 | G50: 500000 | H50: 300000 | I50: =H50+F50 -> 800000 | J50: DPPO Obec
A51: 6399 | D51: Ostatní finanční operace | F51: 800000 | G51: 800000 | H51: =H50 -> 300000 | I51: =F51+H51 -> 1100000
D53: Celkem ZMĚNY ve VÝDAJÍCH | F53: 52372601.7 | G53: =F53 -> 52372601.7 | H53: =H51+H47+H45+H41+H38+H36+H33+H49+H43 -> 0 | I53: =F53+H53 -> 52372601.7
D55: Celkem VÝDAJE | G55: =F53 -> 52372601.7 | H55: =H53 -> 0 | I55: =I53 -> 52372601.7
A59: FINANCOVÁNÍ
A60: PAR | B60: POL | C60: UZ | D60: PARAGRAF | E60: POLOŽKA | G60: Upravený ROZP | H60: změna ROZP | I60: ROZP po ZMĚNĚ | J60: POZNÁMKA
D61: Celkem ZMĚNY ve FINANCOVÁNÍ: | H61: 0
D64: REKAPITULACE:
D66: Celkem PŘÍJMY | G66: =F24 -> 41986755 | H66: =H24 -> 0 | I66: =H66+G66 -> 41986755
D67: Celkem FINANCOVÁNÍ: | G67: 13307846.7 | H67: 0 | I67: =H67+G67 -> 13307846.7
D68: Celkem PŘÍJMY+FINANCOVÁNÍ | G68: =+G67+G66 -> 55294601.7 | H68: =+H67+H66 -> 0 | I68: =H68+G68 -> 55294601.7
D70: Celkem VÝDAJE | G70: =F53 -> 52372601.7 | H70: =H53 -> 0 | I70: =G70+H70 -> 52372601.7
D71: Celkem FINANCOVÁNÍ: | G71: 2922000 | H71: 0 | I71: =H71+G71 -> 2922000
D72: Celkem VÝDAJE+FINANCOVÁNÍ | G72: =+G71+G70 -> 55294601.7 | H72: =+H71+H70 -> 0 | I72: =+I71+I70 -> 55294601.7
A74: Důvodová zpráva k rozpočtové změně č. 1/2021
A76: Přesun prostředků v rámci nezajištěného výdaje je Čerpán z rezervy obce.
A78: Správce rozpočtu :
A80: Starosta obce :
A82: Rada obce schvaluje dne 29. 03. 2021 rozpočtová změna č. 1/2021 v předloženém rozsahu

Sheet List2
A1: TEXTY PRO FORMULÁŘ ÚPRAVA ROZPOČTU - na začátek kopírují se řádky 3-13
A2: poznámka: Texty, které budou přenášeny z tohoto formuláře, musí být zapsány pouze ve sloupci A
A5: Obec , IČ: Náklo, 00299251
A7: Rozpočtové změny roku 2019 -duben
A9: V souladu s ustanovením § 16 zákona č. 250/2000 Sb., o rozpočtových pravidlech územních rozpočtů dojde k rozpočtovému
A10: opatření v případě změn rozpočtových prostředků na závazných ukazatelích.
A12: Rozpočtové opatření č. 1/2019 (předloženo na ZQ 6. 6. 2018) a doplněno při jednání na ZO
A14: TEXTY PRO FORMULÁŘ ÚPRAVA ROZPOČTU - na začátek kopírují se řádky 16-32
A16: Důvodová zpráva k rozpočtovému opatření č. 1/2019
A18: Přesun prostředků v rámci nezajištěného výdaje je Čerpán z rezervy obce.
A20: Správce rozpočtu :
A22: Starosta obce :
A24: ZO schvaluje dne 6. 6. 2018 rozpočtové opatření č. 3/2018 v předloženém rozsahu Usnesením č. 1038/1860

Sheet List3
